fUST/lending_fUST_20240131
["ID","MTS","AMOUNT","RATE_DAILY","PERIOD"]
[313068495,1706715040891,-500.0,0.00020273,2]
[313068496,1706715040906,-500.0,0.00020273,2]
[313068497,1706715040918,-305.18971501,0.00020273,2]
[313068498,1706715040931,-1647.38,0.00020273,2]
[313068499,1706715040943,-500.0,0.00020273,2]
[313068500,1706715040956,-151.0,0.00020273,2]
[313068501,1706715040970,-727.67,0.00020273,2]
[313068502,1706715040984,-500.0,0.00020273,2]
[313068503,1706715040998,-895.25,0.00020273,2]
[313068504,1706715041009,-500.0,0.00020273,2]
[313068505,1706715041020,-500.0,0.00020273,2]
[313068506,1706715041031,-500.0,0.00020273,2]
[313068507,1706715041043,-1251.87,0.00020273,2]
[313068508,1706715041056,-583.751596,0.00020273,2]
[313068509,1706715041067,-583.751596,0.00020273,2]
[313068510,1706715041082,-206.64006048,0.00020273,2]
[313068511,1706715041094,-500.0,0.00020273,2]
[313068512,1706715041104,-1838.66,0.00020273,2]
[313068513,1706715041116,-776.17,0.00020273,2]
[313068514,1706715041127,-500.0,0.00020273,2]
[313068515,1706715041139,-500.0,0.00020273,2]
[313068516,1706715041150,-500.0,0.00020273,2]
[313068517,1706715041162,-4835.08,0.00020273,2]
[313068518,1706715041173,-500.0,0.00020273,2]
[313068519,1706715041184,-930.09,0.00020273,2]
[313068520,1706715041195,-959.43,0.00020273,2]
[313068521,1706715041207,-955.13,0.00020273,2]
[313068522,1706715041219,-19519.42,0.00020273,2]
[313068523,1706715041230,-500.0,0.00020273,2]
[313068524,1706715041241,-500.0,0.00020273,2]
[313068525,1706715041252,-630.11,0.00020273,2]
[313068526,1706715041264,-500.0,0.00020273,2]
[313068527,1706715041275,-500.0,0.00020273,2]
[313068528,1706715041286,-500.0,0.00020273,2]
[313068529,1706715041297,-500.0,0.00020273,2]
[313068530,1706715041308,-10840.86,0.00020273,2]
[313068531,1706715041321,-500.0,0.00020273,2]
[313068532,1706715041332,-821.67,0.00020273,2]
[313068533,1706715041344,-830.05,0.00020273,2]
[313068534,1706715041355,-1037.81,0.00020273,2]
[313068535,1706715041366,-828.07,0.00020273,2]
[313068536,1706715041378,-1462.74,0.00020273,2]
[313068537,1706715041390,-1652.32,0.00020273,2]
[313068538,1706715041402,-426.67943887,0.00020273,2]
[313068539,1706715041413,-1673.22,0.00020273,2]
[313068540,1706715041424,-15290.87,0.00020273,2]
[313068541,1706715041436,-3759.32,0.00020273,2]
[313068542,1706715041448,-151.0,0.00020273,2]
[313068543,1706715041459,-151.0,0.00020273,2]
[313068544,1706715041470,-151.0,0.00020273,2]
[313068545,1706715041482,-4335.94,0.00020273,2]
[313068546,1706715041494,-3359.32,0.00020273,2]
[313068547,1706715041505,-9272.51,0.00020273,2]
[313068548,1706715041517,-2196.8,0.00020273,2]
[313068549,1706715041530,-564.91,0.00020273,2]
[313068550,1706715041540,-1907.48,0.00020273,2]
[313068551,1706715041552,-4819.18,0.00020273,2]
[313068552,1706715041561,-1644.62,0.00020273,2]
[313068553,1706715041572,-500.0,0.00020273,2]
[313068554,1706715041698,-500.0,0.00020273,2]
[313068555,1706715041710,-1941.48,0.00020273,2]
[313068556,1706715041719,-500.0,0.00020273,2]
[313068557,1706715041728,-564.61,0.00020273,2]
[313068558,1706715041738,-500.0,0.00020273,2]
[313068559,1706715041748,-500.0,0.00020273,2]
[313068560,1706715041757,-1929.66,0.00020273,2]
[313068561,1706715041767,-1765.6,0.00020273,2]
[313068562,1706715041776,-500.0,0.00020273,2]
[313068563,1706715041785,-500.0,0.00020273,2]
[313068564,1706715041795,-2831.04,0.00020273,2]
[313068565,1706715041804,-1183.02,0.00020273,2]
[313068566,1706715041813,-651.75,0.00020273,2]
[313068567,1706715041824,-500.0,0.00020273,2]
[313068568,1706715041833,-500.0,0.00020273,2]
[313068569,1706715041842,-4409.543309,0.00020273,2]
[313068570,1706715041852,-4409.543309,0.00020273,2]
[313068571,1706715041861,-2461.89,0.00020273,2]
[313068572,1706715041871,-508.71,0.00020273,2]
[313068573,1706715041880,-3137.61,0.00020273,2]
[313068574,1706715041890,-172.578111,0.00020274,2]
[313068575,1706715041899,-151.0,0.00020274,2]
[313068576,1706715041908,-151.0,0.00020274,2]
[313068577,1706715041918,-583.751596,0.00020282,2]
[313068578,1706715041927,-583.751596,0.00020282,2]
[313068579,1706715041936,-4409.543309,0.00020282,2]
[313068580,1706715041945,-4409.543309,0.00020282,2]
[313068581,1706715041955,-500.0,0.00020312,2]
[313068582,1706715041965,-1179.45,0.00020312,2]
[313068583,1706715041974,-500.0,0.00020312,2]
[313068584,1706715041983,-500.0,0.00020312,2]
[313068585,1706715041992,-3784.54,0.00020312,2]
[313068586,1706715042001,-1360.05,0.00020312,2]
[313068587,1706715042010,-500.0,0.00020312,2]
[313068588,1706715042019,-500.0,0.00020325,2]
[313068589,1706715042028,-500.0,0.00020325,2]
[313068590,1706715042038,-503.33303702,0.00020325,2]
[313068591,1706715042047,-500.0,0.00020325,2]
[313068592,1706715042056,-500.0,0.00020325,2]
[313068593,1706715042066,-500.0,0.00020325,2]
[313068594,1706715042078,-502.98900751,0.00020325,2]
[313068595,1706715042087,-500.0,0.00020325,2]
[313068596,1706715042096,-500.0,0.00020325,2]
[313068597,1706715042106,-2399.46,0.00020325,2]
[313068598,1706715042115,-331.99793192,0.00020325,2]
[313068599,1706715042124,-200.0,0.00020349,2]
[313068600,1706715042133,-155.00620025,0.00020375,2]
[313068601,1706715042142,-155.00620025,0.00020375,2]
[313068602,1706715042151,-155.00620025,0.00020375,2]
[313068603,1706715042160,-1589.68284634,0.00020375,2]
[313068604,1706715042169,-167.18166868,0.00020376,2]
[313068605,1706715042178,-500.0,0.00020454,2]
[313068607,1706715042188,-500.0,0.00020454,2]
[313068608,1706715042197,-151.0,0.00020454,2]
[313068609,1706715042206,-151.0,0.00020454,2]
[313068610,1706715042215,-151.0,0.00020454,2]
[313068611,1706715042225,-180.88,0.00020454,2]
[313068612,1706715042234,-151.0,0.00020454,2]
[313068614,1706715042243,-500.0,0.00020547,2]
[313068616,1706715042253,-500.0,0.00020547,2]
[313068618,1706715042262,-500.0,0.00020547,2]
[313068620,1706715042271,-645.59,0.00020547,2]
[313068622,1706715042281,-500.0,0.00020547,2]
[313068624,1706715042290,-500.0,0.00020547,2]
[313068626,1706715042299,-1647.38,0.00020547,2]
[313068627,1706715042309,-500.0,0.00020547,2]
[313068629,1706715042318,-727.67,0.00020547,2]
[313068631,1706715042329,-500.0,0.00020547,2]
[313068633,1706715042339,-895.25,0.00020547,2]
[313068635,1706715042348,-500.0,0.00020547,2]
[313068637,1706715042358,-500.0,0.00020547,2]
[313068639,1706715042367,-500.0,0.00020547,2]
[313068641,1706715042376,-1251.87,0.00020547,2]
[313068643,1706715042385,-583.751596,0.00020547,2]
[313068645,1706715042395,-583.751596,0.00020547,2]
[313068647,1706715042404,-500.0,0.00020547,2]
[313068649,1706715042414,-1838.66,0.00020547,2]
[313068651,1706715042423,-776.17,0.00020547,2]
[313068653,1706715042433,-500.0,0.00020547,2]
[313068654,1706715042443,-500.0,0.00020547,2]
[313068656,1706715042453,-452.83176311,0.00020547,2]
[313068658,1706715042462,-500.0,0.00020547,2]
[313068659,1706715042472,-930.09,0.00020547,2]
[313068660,1706715042481,-959.43,0.00020547,2]
[313068661,1706715042490,-955.13,0.00020547,2]
[313068662,1706715042501,-19519.42,0.00020547,2]
[313068663,1706715042510,-541.43161905,0.00020547,2]
[313068664,1706715042519,-500.0,0.00020547,2]
[313068665,1706715042529,-630.11,0.00020547,2]
[313068666,1706715042539,-500.0,0.00020547,2]
[313068667,1706715042549,-358.40468292,0.00020547,2]
[313068668,1706715042559,-187.44697814,0.00020547,2]
[313068669,1706715042569,-500.0,0.00020547,2]
[313068670,1706715042582,-10840.86,0.00020547,2]
[313068671,1706715042593,-500.0,0.00020547,2]
[313068672,1706715042603,-821.67,0.00020547,2]
[313068673,1706715042613,-830.05,0.00020547,2]
[313068674,1706715042622,-1037.81,0.00020547,2]
[313068675,1706715042631,-828.07,0.00020547,2]
[313068676,1706715042641,-1462.74,0.00020547,2]
[313068677,1706715042651,-1652.32,0.00020547,2]
[313068678,1706715042660,-1673.22,0.00020547,2]
[313068679,1706715042670,-15290.87,0.00020547,2]
[313068680,1706715042679,-3759.32,0.00020547,2]
[313068681,1706715042688,-151.0,0.00020547,2]
[313068682,1706715042698,-151.0,0.00020547,2]
[313068683,1706715042707,-4335.94,0.00020547,2]
[313068684,1706715042717,-3359.32,0.00020547,2]
[313068685,1706715042726,-9272.51,0.00020547,2]
[313068686,1706715042736,-2196.8,0.00020547,2]
[313068687,1706715042745,-564.91,0.00020547,2]
[313068688,1706715042755,-1619.85441282,0.00020547,2]
[313068689,1706715042853,-287.62558718,0.00020547,2]
[313068690,1706715042862,-395.78926414,0.00020547,2]
[313068691,1706715042874,-797.3090782,0.00020547,2]
[313068692,1706715042884,-3626.08165766,0.00020547,2]
[313068693,1706715042894,-386.47738235,0.00020547,2]
[313068694,1706715042905,-1258.14261765,0.00020547,2]
[313068695,1706715042914,-500.0,0.00020547,2]
[313068696,1706715042923,-500.0,0.00020547,2]
[313068697,1706715042932,-1941.48,0.00020547,2]
[313068698,1706715042941,-500.0,0.00020547,2]
[313068699,1706715042950,-287.61633224,0.00020547,2]
[313068700,1706715042962,-276.99366776,0.00020547,2]
[313068701,1706715042972,-500.0,0.00020547,2]
[313068702,1706715042981,-500.0,0.00020547,2]
[313068703,1706715042990,-1929.66,0.00020547,2]
[313068704,1706715043000,-1765.6,0.00020547,2]
[313068705,1706715043009,-500.0,0.00020547,2]
[313068706,1706715043018,-500.0,0.00020547,2]
[313068707,1706715043027,-2831.04,0.00020547,2]
[313068708,1706715043036,-1183.02,0.00020547,2]
[313068709,1706715043045,-651.75,0.00020547,2]
[313068710,1706715043055,-500.0,0.00020547,2]
[313068711,1706715043064,-500.0,0.00020547,2]
[313068712,1706715043075,-4409.543309,0.00020547,2]
[313068713,1706715043084,-4409.543309,0.00020547,2]
[313068714,1706715043094,-2461.89,0.00020547,2]
[313068715,1706715043103,-508.71,0.00020547,2]
[313068716,1706715043112,-3137.61,0.00020547,2]
[313068717,1706715043122,-151.0,0.00020548,2]
[313068718,1706715043131,-218.100997,0.00020548,2]
[313068719,1706715043140,-151.0,0.00020575,2]
[313068720,1706715043149,-155.56475349,0.00020584,2]
[313068721,1706715043158,-500.0,0.00020586,2]
[313068722,1706715043168,-1179.45,0.00020586,2]
[313068723,1706715043177,-500.0,0.00020586,2]
[313068724,1706715043186,-500.0,0.00020586,2]
[313068725,1706715043196,-3784.54,0.00020586,2]
[313068726,1706715043205,-1360.05,0.00020586,2]
[313068727,1706715043214,-583.751596,0.00020586,2]
[313068728,1706715043223,-583.751596,0.00020586,2]
[313068729,1706715043232,-500.0,0.00020586,2]
[313068730,1706715043242,-237045.20687935,0.00020587,2]
[313068731,1706715043252,-535.60419036,0.00020587,2]
[313068732,1706715043261,-583.751596,0.00020587,2]
[313068733,1706715043270,-583.751596,0.00020587,2]
[313068734,1706715043279,-151.0,0.00020587,2]
[313068735,1706715043288,-151.0,0.00020587,2]
[313068736,1706715043297,-151.0,0.00020587,2]
[313068737,1706715043306,-4409.543309,0.00020587,2]
[313068738,1706715043315,-4409.543309,0.00020587,2]
[313068739,1706715043326,-500.0,0.00020599,2]
[313068740,1706715043335,-500.0,0.00020599,2]
[313068741,1706715043344,-500.0,0.00020599,2]
[313068742,1706715043353,-500.0,0.00020599,2]
[313068743,1706715043363,-500.0,0.00020599,2]
[313068744,1706715043373,-2399.46,0.00020599,2]
[313068745,1706715043382,-500.0,0.00020728,2]
[313068746,1706715043391,-500.0,0.00020728,2]
[313068747,1706715043402,-500.0,0.00020821,2]
[313068748,1706715043411,-500.0,0.00020821,2]
[313068749,1706715043420,-500.0,0.00020821,2]
[313068750,1706715043430,-645.59,0.00020821,2]
[313068751,1706715043438,-500.0,0.00020821,2]
[313068752,1706715043448,-500.0,0.00020821,2]
[313068753,1706715043458,-1647.38,0.00020821,2]
[313068754,1706715043467,-500.0,0.00020821,2]
[313068755,1706715043477,-727.67,0.00020821,2]
[313068756,1706715043486,-500.0,0.00020821,2]
[313068757,1706715043496,-895.25,0.00020821,2]
[313068758,1706715043505,-500.0,0.00020821,2]
[313068759,1706715043514,-500.0,0.00020821,2]
[313068760,1706715043523,-500.0,0.00020821,2]
[313068761,1706715043532,-1251.87,0.00020821,2]
[313068762,1706715043542,-583.751596,0.00020821,2]
[313068763,1706715043553,-583.751596,0.00020821,2]
[313068764,1706715043563,-500.0,0.00020821,2]
[313068765,1706715043573,-1838.66,0.00020821,2]
[313068766,1706715043585,-776.17,0.00020821,2]
[313068767,1706715043595,-500.0,0.00020821,2]
[313068768,1706715043604,-500.0,0.00020821,2]
[313068769,1706715043613,-151.0,0.00020821,2]
[313068770,1706715043623,-500.0,0.00020821,2]
[313068771,1706715043632,-930.09,0.00020821,2]
[313068772,1706715043642,-959.43,0.00020821,2]
[313068773,1706715043734,-955.13,0.00020821,2]
[313068774,1706715043744,-19519.42,0.00020821,2]
[313068775,1706715043754,-500.0,0.00020821,2]
[313068777,1706715043763,-630.11,0.00020821,2]
[313068779,1706715043774,-500.0,0.00020821,2]
[313068782,1706715043784,-500.0,0.00020821,2]
[313068785,1706715043793,-10840.86,0.00020821,2]
[313068788,1706715043803,-500.0,0.00020821,2]
[313068790,1706715043812,-821.67,0.00020821,2]
[313068793,1706715043823,-830.05,0.00020821,2]
[313068798,1706715043833,-1037.81,0.00020821,2]
[313068803,1706715043842,-828.07,0.00020821,2]
[313068808,1706715043851,-1462.74,0.00020821,2]
[313068811,1706715043860,-1652.32,0.00020821,2]
[313068812,1706715043870,-1673.22,0.00020821,2]
[313068814,1706715043879,-15290.87,0.00020821,2]
[313068815,1706715043888,-3759.32,0.00020821,2]
[313068816,1706715043897,-151.0,0.00020821,2]
[313068819,1706715043906,-151.0,0.00020821,2]
[313068822,1706715043915,-4335.94,0.00020821,2]
[313068824,1706715043924,-3359.32,0.00020821,2]
[313068827,1706715043934,-9272.51,0.00020821,2]
[313068830,1706715043943,-2196.8,0.00020821,2]
[313068832,1706715043951,-564.91,0.00020821,2]
[313068834,1706715043960,-1907.48,0.00020821,2]
[313068836,1706715043969,-4819.18,0.00020821,2]
[313068838,1706715043979,-1644.62,0.00020821,2]
[313068839,1706715043988,-500.0,0.00020821,2]
[313068840,1706715043998,-500.0,0.00020821,2]
[313068841,1706715044007,-1941.48,0.00020821,2]
[313068842,1706715044016,-500.0,0.00020821,2]
[313068843,1706715044026,-564.61,0.00020821,2]
[313068844,1706715044035,-500.0,0.00020821,2]
[313068845,1706715044044,-500.0,0.00020821,2]
[313068846,1706715044054,-1929.66,0.00020821,2]
[313068847,1706715044063,-1765.6,0.00020821,2]
[313068848,1706715044074,-500.0,0.00020821,2]
[313068849,1706715044083,-500.0,0.00020821,2]
[313068850,1706715044092,-2831.04,0.00020821,2]
[313068851,1706715044102,-1183.02,0.00020821,2]
[313068852,1706715044111,-651.75,0.00020821,2]
[313068853,1706715044120,-500.0,0.00020821,2]
[313068854,1706715044130,-500.0,0.00020821,2]
[313068855,1706715044139,-4409.543309,0.00020821,2]
[313068856,1706715044148,-4409.543309,0.00020821,2]
[313068857,1706715044157,-2461.89,0.00020821,2]
[313068858,1706715044166,-508.71,0.00020821,2]
[313068859,1706715044176,-390.77771637,0.00020822,2]
[313068861,1706715044184,-500.0,0.00020822,2]
[313068863,1706715044193,-500.0,0.00020822,2]
[313068864,1706715044203,-500.0,0.00020822,2]
[313068866,1706715044212,-500.0,0.00020822,2]
[313068868,1706715044221,-500.0,0.00020822,2]
[313068870,1706715044230,-620.27498651,0.00020822,2]
[313068871,1706715044239,-500.0,0.00020822,2]
[313068873,1706715044248,-500.0,0.00020822,2]
[313068875,1706715044257,-514.1651738,0.00020822,2]
[313068876,1706715044266,-500.0,0.00020822,2]
[313068878,1706715044276,-500.0,0.00020822,2]
[313068880,1706715044285,-500.0,0.00020822,2]
[313068881,1706715044294,-500.0,0.00020822,2]
[313068882,1706715044303,-500.0,0.00020822,2]
[313068883,1706715044313,-500.0,0.00020822,2]
[313068884,1706715044324,-500.0,0.00020822,2]
[313068885,1706715044334,-500.0,0.00020822,2]
[313068886,1706715044343,-500.0,0.00020822,2]
[313068887,1706715044352,-500.0,0.00020822,2]
[313068888,1706715044361,-500.0,0.00020822,2]
[313068889,1706715044371,-328.89269782,0.00020822,2]
[313068890,1706715044380,-500.0,0.00020822,2]
[313068891,1706715044390,-500.0,0.00020822,2]
[313068892,1706715044399,-500.0,0.00020822,2]
[313068893,1706715044408,-500.0,0.00020822,2]
[313068894,1706715044418,-500.0,0.00020822,2]
[313068895,1706715044427,-500.0,0.00020822,2]
[313068896,1706715044437,-500.0,0.00020822,2]
[313068897,1706715044446,-500.0,0.00020822,2]
[313068898,1706715044456,-500.0,0.00020822,2]
[313068899,1706715044465,-500.0,0.00020822,2]
[313068900,1706715044475,-500.0,0.00020822,2]
[313068901,1706715044486,-500.0,0.00020822,2]
[313068902,1706715044495,-500.0,0.00020822,2]
[313068903,1706715044504,-500.0,0.00020822,2]
[313068904,1706715044514,-500.0,0.00020822,2]
[313068905,1706715044523,-596.6839241,0.00020822,2]
[313068906,1706715044533,-500.0,0.00020822,2]
[313068907,1706715044542,-500.0,0.00020822,2]
[313068908,1706715044558,-500.0,0.00020822,2]
[313068909,1706715044567,-500.0,0.00020822,2]
[313068910,1706715044580,-500.0,0.00020822,2]
[313068911,1706715044589,-500.0,0.00020822,2]
[313068912,1706715044599,-456.16341098,0.00020822,2]
[313068913,1706715044608,-500.0,0.00020822,2]
[313068914,1706715044618,-500.0,0.00020822,2]
[313068915,1706715044629,-500.0,0.00020822,2]
[313068916,1706715044639,-211.19472155,0.00020822,2]
[313068917,1706715044648,-500.0,0.00020822,2]
[313068918,1706715044658,-528.99414233,0.00020822,2]
[313068919,1706715044667,-362.44050996,0.00020822,2]
[313068920,1706715044677,-465.10363133,0.00020822,2]
[313068922,1706715044686,-184.13247089,0.00020822,2]
[313068924,1706715044695,-500.0,0.00020822,2]
[313068926,1706715044705,-485.34101173,0.00020822,2]
[313068927,1706715044714,-500.0,0.00020822,2]
[313068929,1706715044723,-500.0,0.00020822,2]
[313068931,1706715044732,-156.4033352,0.00020822,2]
[313068932,1706715044741,-500.0,0.00020822,2]
[313068933,1706715044750,-500.0,0.00020822,2]
[313068935,1706715044760,-500.0,0.00020822,2]
[313068936,1706715044769,-500.0,0.00020822,2]
[313068937,1706715044778,-450.0,0.00020822,2]
[313068938,1706715044788,-500.0,0.00020822,2]
[313068939,1706715044797,-500.0,0.00020822,2]
[313068940,1706715044807,-500.0,0.00020822,2]
[313068941,1706715044816,-500.0,0.00020822,2]
[313068942,1706715044828,-500.0,0.00020822,2]
[313068943,1706715044837,-328.36725561,0.00020822,2]
[313068944,1706715044845,-500.0,0.00020822,2]
[313068945,1706715044854,-500.0,0.00020822,2]
[313068946,1706715044864,-500.0,0.00020822,2]
[313068947,1706715044872,-500.0,0.00020822,2]
[313068948,1706715044881,-500.0,0.00020822,2]
[313068949,1706715044891,-500.0,0.00020822,2]
[313068950,1706715044900,-500.0,0.00020822,2]
[313068951,1706715044909,-500.0,0.00020822,2]
[313068952,1706715044918,-500.0,0.00020822,2]
[313068953,1706715044927,-500.0,0.00020822,2]
[313068954,1706715044936,-500.0,0.00020822,2]
[313068955,1706715044945,-500.0,0.00020822,2]
[313068956,1706715044954,-450.0,0.00020822,2]
[313068957,1706715044963,-500.0,0.00020822,2]
[313068958,1706715044973,-500.0,0.00020822,2]
[313068959,1706715044982,-500.0,0.00020822,2]
[313068960,1706715044991,-500.0,0.00020822,2]
[313068961,1706715045000,-500.0,0.00020822,2]
[313068962,1706715045010,-500.0,0.00020822,2]
[313068963,1706715045019,-300.0,0.00020822,2]
[313068964,1706715045028,-500.0,0.00020822,2]
[313068965,1706715045037,-500.0,0.00020822,2]
[313068966,1706715045047,-500.0,0.00020822,2]
[313068967,1706715045056,-500.0,0.00020822,2]
[313068968,1706715045065,-500.0,0.00020822,2]
[313068969,1706715045075,-500.0,0.00020822,2]
[313068970,1706715045084,-500.0,0.00020822,2]
[313068971,1706715045093,-500.0,0.00020822,2]
[313068972,1706715045102,-500.0,0.00020822,2]
[313068973,1706715045112,-500.0,0.00020822,2]
[313068974,1706715045121,-500.0,0.00020822,2]
[313068975,1706715045130,-500.0,0.00020822,2]
[313068976,1706715045140,-500.0,0.00020822,2]
[313068977,1706715045150,-304.93619124,0.00020822,2]
[313068978,1706715045160,-500.0,0.00020822,2]
[313068979,1706715045169,-181.74889819,0.00020822,2]
[313068980,1706715045178,-650.0,0.00020822,2]
[313068982,1706715045188,-500.0,0.00020822,2]
[313068984,1706715045197,-500.0,0.00020822,2]
[313068986,1706715045207,-500.0,0.00020822,2]
[313068988,1706715045216,-500.0,0.00020822,2]
[313068989,1706715045225,-500.0,0.00020822,2]
[313068991,1706715045235,-500.0,0.00020822,2]
[313068994,1706715045245,-500.0,0.00020822,2]
[313068995,1706715045254,-500.0,0.00020822,2]
[313068996,1706715045263,-500.0,0.00020822,2]
[313068997,1706715045273,-369.22592694,0.00020822,2]
[313068998,1706715045282,-500.0,0.00020822,2]
[313068999,1706715045291,-500.0,0.00020822,2]
[313069001,1706715045300,-500.0,0.00020822,2]
[313069003,1706715045309,-500.0,0.00020822,2]
[313069005,1706715045320,-500.0,0.00020822,2]
[313069007,1706715045331,-500.0,0.00020822,2]
[313069009,1706715045340,-500.0,0.00020822,2]
[313069010,1706715045348,-500.0,0.00020822,2]
[313069012,1706715045357,-500.0,0.00020822,2]
[313069014,1706715045367,-500.0,0.00020822,2]
[313069016,1706715045376,-620.41967206,0.00020822,2]
[313069018,1706715045385,-500.0,0.00020822,2]
[313069021,1706715045395,-500.0,0.00020822,2]
[313069025,1706715045405,-500.0,0.00020822,2]
[313069027,1706715045414,-500.0,0.00020822,2]
[313069030,1706715045423,-500.0,0.00020822,2]
[313069034,1706715045433,-500.0,0.00020822,2]
[313069035,1706715045443,-500.0,0.00020822,2]
[313069037,1706715045452,-500.0,0.00020822,2]
[313069039,1706715045461,-500.0,0.00020822,2]
[313069042,1706715045471,-500.0,0.00020822,2]
[313069044,1706715045480,-583.751596,0.00020822,2]
[313069045,1706715045489,-583.751596,0.00020822,2]
[313069047,1706715045499,-151.0,0.00020822,2]
[313069049,1706715045509,-151.0,0.00020822,2]
[313069050,1706715045519,-151.0,0.00020822,2]
[313069052,1706715045529,-4409.543309,0.00020822,2]
[313069054,1706715045539,-4409.543312,0.00020822,2]
[313069056,1706715045548,-500.0,0.0002086,2]
[313069058,1706715045558,-1179.45,0.0002086,2]
[313069061,1706715045568,-500.0,0.0002086,2]
[313069063,1706715045581,-542.32133494,0.0002086,2]
[313069065,1706715045590,-3784.54,0.0002086,2]
[313069067,1706715045599,-1360.05,0.0002086,2]
[313069069,1706715045608,-500.0,0.0002086,2]
[313069071,1706715045618,-500.0,0.00020873,2]
[313069072,1706715045627,-500.0,0.00020873,2]
[313069083,1706715045710,-500.0,0.00020873,2]
[313069085,1706715045719,-500.0,0.00020873,2]
[313069087,1706715045729,-500.0,0.00020873,2]
[313069089,1706715045738,-2399.46,0.00020873,2]
[313069091,1706715045748,-164.49311095,0.00020999,2]
[313069094,1706715045757,-270.48417093,0.00021,2]
[313069097,1706715045767,-155.41033388,0.00021,2]
[313069100,1706715045776,-214.31553565,0.00021,2]
[313069102,1706715045786,-1042.0,0.00021,2]
[313069105,1706715045795,-11764.07376172,0.00021,2]
[313069107,1706715045804,-583.751596,0.00021,2]
[313069109,1706715045813,-583.751596,0.00021,2]
[313069112,1706715045825,-151.0,0.00021,2]
[313069115,1706715045834,-500.0,0.00021002,2]
[313069118,1706715045843,-500.0,0.00021002,2]
[313069120,1706715045854,-643.7210836,0.00021077,2]
[313069122,1706715045863,-500.0,0.00021095,2]
[313069124,1706715045873,-500.0,0.00021095,2]
[313069126,1706715045883,-500.0,0.00021095,2]
[313069128,1706715045892,-645.59,0.00021095,2]
[313069129,1706715045902,-342.75143032,0.00021095,2]
[313069131,1706715045911,-500.0,0.00021095,2]
[313069134,1706715045921,-1647.38,0.00021095,2]
[313069135,1706715045931,-500.0,0.00021095,2]
[313069138,1706715045941,-727.67,0.00021095,2]
[313069140,1706715045950,-500.0,0.00021095,2]
[313069141,1706715045960,-895.25,0.00021095,2]
[313069144,1706715045970,-500.0,0.00021095,2]
[313069147,1706715045979,-500.0,0.00021095,2]
[313069150,1706715045989,-500.0,0.00021095,2]
[313069152,1706715045999,-1251.87,0.00021095,2]
[313069153,1706715046009,-500.0,0.00021095,2]
[313069155,1706715046018,-1838.66,0.00021095,2]
[313069157,1706715046028,-776.17,0.00021095,2]
[313069160,1706715046038,-500.0,0.00021095,2]
[313069162,1706715046047,-500.0,0.00021095,2]
[313069163,1706715046057,-500.0,0.00021095,2]
[313069166,1706715046067,-930.09,0.00021095,2]
[313069167,1706715046080,-959.43,0.00021095,2]
[313069170,1706715046090,-955.13,0.00021095,2]
[313069171,1706715046100,-19519.42,0.00021095,2]
[313069173,1706715046111,-500.0,0.00021095,2]
[313069176,1706715046121,-630.11,0.00021095,2]
[313069177,1706715046132,-500.0,0.00021095,2]